{"text_format":"3","workbook":"xlsx","n_sheets":14,"sheets":["tips","summary","jan","feb","mar","apr","may","jun","jul","aug","sep","oct","nov","dec"],"not_rendered":{"charts":1,"defined_names":27},"read":"whole","date_system":"1900"}

{"sheet":"tips","index":0,"n_rows":18,"n_cols":1,"rows_kept":18}
["TEMPLATE TIPS"]
["Is there an easy way to jump between the expense trends summary sheet and monthly expense details?"]
["To quickly navigate to a specific month's expenses, click the associated navigation link above the chart, such as the Jan navigation link in B2. Then, to return to the expense trends worksheet, click the summary navigation link in D1. "]
["To return to this tips worksheet, in the summary worksheet, select N2. From all month worksheets, select E1."]
["How do I add a new Expense type to the Expense Summary or new monthly expenses?"]
["The expense summary below the chart and the expense details for each month are Excel tables. To add new rows to any Excel table, do one of the following:"]
[{"$f":"ROW(A1)&\". If the table does not have a total row, start typing below the table and it will automatically expand when you press the enter or tab key.\"","v":"1. If the table does not have a total row, start typing below the table and it will automatically expand when you press the enter or tab key."}]
[{"$f":"ROW(A2)&\". Place your cell pointer in the last cell above the total row, such as the total for the last expense, and then press the tab key.\"","v":"2. Place your cell pointer in the last cell above the total row, such as the total for the last expense, and then press the tab key."}]
[{"$f":"ROW(A3)&\". Right-click in the table and on the pop up menu, point to Insert, and then click table rows above or table rows below.\"","v":"3. Right-click in the table and on the pop up menu, point to Insert, and then click table rows above or table rows below."}]
[{"$f":"ROW(A4)&\". In the bottom right corner of the table, place your mouse on the table sizing handle and drag down to increase the number of available table rows.\"","v":"4. In the bottom right corner of the table, place your mouse on the table sizing handle and drag down to increase the number of available table rows."}]
["Enter expense in the summary worksheet in the expense summary table in the expenses column."]
["Add the expense amount for each expense type in the month worksheet that the expense applies."]
["for example: \"Expense 1\" occurs in months Jan to Jun and Dec. "]
[{"$f":"ROW(A1)&\". Expense 1 is entered in the summary worksheet under expense in expense summary table (as the title for the expense type)\"","v":"1. Expense 1 is entered in the summary worksheet under expense in expense summary table (as the title for the expense type)"}]
[{"$f":"ROW(A2)&\". For each month the expense occurs, enter the amount for the expense in the corresponding month worksheet.\"","v":"2. For each month the expense occurs, enter the amount for the expense in the corresponding month worksheet."}]
[{"$f":"ROW(A3)&\". The expense type from the expense summary worksheet creates a category list for the category column in each month's worksheet.\"","v":"3. The expense type from the expense summary worksheet creates a category list for the category column in each month's worksheet."}]
[{"$f":"ROW(A4)&\". Use the category list in the category column to select the corresponding expense type for the expense amount entered\"","v":"4. Use the category list in the category column to select the corresponding expense type for the expense amount entered"}]
[{"$f":"ROW(A5)&\". To add new expenses for any month, add a new row to the expense summary table in the summary worksheet, then enter corresponding expense details in the month worksheet for which it applies.\"","v":"5. To add new expenses for any month, add a new row to the expense summary table in the summary worksheet, then enter corresponding expense details in the month worksheet for which it applies."}]

{"sheet":"summary","index":1,"n_rows":10,"n_cols":15,"rows_kept":10}
["EXPENSE TRENDS"]
[null,"Jan","Feb","Mar","Apr","May","Jun","Jul","Aug","Sep","Oct","Nov","Dec","Tips"]
[]
["Expenses","Jan","Feb","Mar","Apr","May","Jun","Jul","Aug","Sep","Oct","Nov","Dec","Total","Trend"]
["Expense 1",{"$f":"SUMIFS(ExpJan[Amount],ExpJan[Category],ExpenseSummary[[#This Row],[Expenses]])","v":{"v":33,"d":"33.00"}},{"$f":"SUMIFS(ExpFeb[Amount],ExpFeb[Category],ExpenseSummary[[#This Row],[Expenses]])","v":{"v":375,"d":"375.00"}},{"$f":"SUMIFS(ExpMar[Amount],ExpMar[Category],ExpenseSummary[[#This Row],[Expenses]])","v":{"v":33,"d":"33.00"}},{"$f":"SUMIFS(ExpApr[Amount],ExpApr[Category],ExpenseSummary[[#This Row],[Expenses]])","v":{"v":45,"d":"45.00"}},{"$f":"SUMIFS(ExpMay[Amount],ExpMay[Category],ExpenseSummary[[#This Row],[Expenses]])","v":{"v":375,"d":"375.00"}},{"$f":"SUMIFS(ExpJun[Amount],ExpJun[Category],ExpenseSummary[[#This Row],[Expenses]])","v":{"v":201,"d":"201.00"}},{"$f":"SUMIFS(ExpJul[Amount],ExpJul[Category],ExpenseSummary[[#This Row],[Expenses]])","v":{"v":0,"d":"0.00"}},{"$f":"SUMIFS(ExpAug[Amount],ExpAug[Category],ExpenseSummary[[#This Row],[Expenses]])","v":{"v":0,"d":"0.00"}},{"$f":"SUMIFS(ExpSep[Amount],ExpSep[Category],ExpenseSummary[[#This Row],[Expenses]])","v":{"v":0,"d":"0.00"}},{"$f":"SUMIFS(ExpOct[Amount],ExpOct[Category],ExpenseSummary[[#This Row],[Expenses]])","v":{"v":0,"d":"0.00"}},{"$f":"SUMIFS(ExpNov[Amount],ExpNov[Category],ExpenseSummary[[#This Row],[Expenses]])","v":{"v":0,"d":"0.00"}},{"$f":"SUMIFS(ExpDec[Amount],ExpDec[Category],ExpenseSummary[[#This Row],[Expenses]])","v":{"v":201,"d":"201.00"}},{"$f":"SUM(ExpenseSummary[[#This Row],[Jan]:[Dec]])","v":{"v":1263,"d":"1,263.00"}}]
["Expense 2",{"$f":"SUMIFS(ExpJan[Amount],ExpJan[Category],ExpenseSummary[[#This Row],[Expenses]])","v":{"v":238,"d":"238.00"}},{"$f":"SUMIFS(ExpFeb[Amount],ExpFeb[Category],ExpenseSummary[[#This Row],[Expenses]])","v":{"v":238,"d":"238.00"}},{"$f":"SUMIFS(ExpMar[Amount],ExpMar[Category],ExpenseSummary[[#This Row],[Expenses]])","v":{"v":238,"d":"238.00"}},{"$f":"SUMIFS(ExpApr[Amount],ExpApr[Category],ExpenseSummary[[#This Row],[Expenses]])","v":{"v":123,"d":"123.00"}},{"$f":"SUMIFS(ExpMay[Amount],ExpMay[Category],ExpenseSummary[[#This Row],[Expenses]])","v":{"v":111,"d":"111.00"}},{"$f":"SUMIFS(ExpJun[Amount],ExpJun[Category],ExpenseSummary[[#This Row],[Expenses]])","v":{"v":98,"d":"98.00"}},{"$f":"SUMIFS(ExpJul[Amount],ExpJul[Category],ExpenseSummary[[#This Row],[Expenses]])","v":{"v":0,"d":"0.00"}},{"$f":"SUMIFS(ExpAug[Amount],ExpAug[Category],ExpenseSummary[[#This Row],[Expenses]])","v":{"v":0,"d":"0.00"}},{"$f":"SUMIFS(ExpSep[Amount],ExpSep[Category],ExpenseSummary[[#This Row],[Expenses]])","v":{"v":0,"d":"0.00"}},{"$f":"SUMIFS(ExpOct[Amount],ExpOct[Category],ExpenseSummary[[#This Row],[Expenses]])","v":{"v":0,"d":"0.00"}},{"$f":"SUMIFS(ExpNov[Amount],ExpNov[Category],ExpenseSummary[[#This Row],[Expenses]])","v":{"v":0,"d":"0.00"}},{"$f":"SUMIFS(ExpDec[Amount],ExpDec[Category],ExpenseSummary[[#This Row],[Expenses]])","v":{"v":440,"d":"440.00"}},{"$f":"SUM(ExpenseSummary[[#This Row],[Jan]:[Dec]])","v":{"v":1486,"d":"1,486.00"}}]
["Expense 3",{"$f":"SUMIFS(ExpJan[Amount],ExpJan[Category],ExpenseSummary[[#This Row],[Expenses]])","v":{"v":110,"d":"110.00"}},{"$f":"SUMIFS(ExpFeb[Amount],ExpFeb[Category],ExpenseSummary[[#This Row],[Expenses]])","v":{"v":110,"d":"110.00"}},{"$f":"SUMIFS(ExpMar[Amount],ExpMar[Category],ExpenseSummary[[#This Row],[Expenses]])","v":{"v":110,"d":"110.00"}},{"$f":"SUMIFS(ExpApr[Amount],ExpApr[Category],ExpenseSummary[[#This Row],[Expenses]])","v":{"v":125,"d":"125.00"}},{"$f":"SUMIFS(ExpMay[Amount],ExpMay[Category],ExpenseSummary[[#This Row],[Expenses]])","v":{"v":333,"d":"333.00"}},{"$f":"SUMIFS(ExpJun[Amount],ExpJun[Category],ExpenseSummary[[#This Row],[Expenses]])","v":{"v":122,"d":"122.00"}},{"$f":"SUMIFS(ExpJul[Amount],ExpJul[Category],ExpenseSummary[[#This Row],[Expenses]])","v":{"v":0,"d":"0.00"}},{"$f":"SUMIFS(ExpAug[Amount],ExpAug[Category],ExpenseSummary[[#This Row],[Expenses]])","v":{"v":0,"d":"0.00"}},{"$f":"SUMIFS(ExpSep[Amount],ExpSep[Category],ExpenseSummary[[#This Row],[Expenses]])","v":{"v":0,"d":"0.00"}},{"$f":"SUMIFS(ExpOct[Amount],ExpOct[Category],ExpenseSummary[[#This Row],[Expenses]])","v":{"v":0,"d":"0.00"}},{"$f":"SUMIFS(ExpNov[Amount],ExpNov[Category],ExpenseSummary[[#This Row],[Expenses]])","v":{"v":0,"d":"0.00"}},{"$f":"SUMIFS(ExpDec[Amount],ExpDec[Category],ExpenseSummary[[#This Row],[Expenses]])","v":{"v":122,"d":"122.00"}},{"$f":"SUM(ExpenseSummary[[#This Row],[Jan]:[Dec]])","v":{"v":1032,"d":"1,032.00"}}]
["Expense 4",{"$f":"SUMIFS(ExpJan[Amount],ExpJan[Category],ExpenseSummary[[#This Row],[Expenses]])","v":{"v":426,"d":"426.00"}},{"$f":"SUMIFS(ExpFeb[Amount],ExpFeb[Category],ExpenseSummary[[#This Row],[Expenses]])","v":{"v":84,"d":"84.00"}},{"$f":"SUMIFS(ExpMar[Amount],ExpMar[Category],ExpenseSummary[[#This Row],[Expenses]])","v":{"v":84,"d":"84.00"}},{"$f":"SUMIFS(ExpApr[Amount],ExpApr[Category],ExpenseSummary[[#This Row],[Expenses]])","v":{"v":426,"d":"426.00"}},{"$f":"SUMIFS(ExpMay[Amount],ExpMay[Category],ExpenseSummary[[#This Row],[Expenses]])","v":{"v":125,"d":"125.00"}},{"$f":"SUMIFS(ExpJun[Amount],ExpJun[Category],ExpenseSummary[[#This Row],[Expenses]])","v":{"v":187,"d":"187.00"}},{"$f":"SUMIFS(ExpJul[Amount],ExpJul[Category],ExpenseSummary[[#This Row],[Expenses]])","v":{"v":0,"d":"0.00"}},{"$f":"SUMIFS(ExpAug[Amount],ExpAug[Category],ExpenseSummary[[#This Row],[Expenses]])","v":{"v":0,"d":"0.00"}},{"$f":"SUMIFS(ExpSep[Amount],ExpSep[Category],ExpenseSummary[[#This Row],[Expenses]])","v":{"v":0,"d":"0.00"}},{"$f":"SUMIFS(ExpOct[Amount],ExpOct[Category],ExpenseSummary[[#This Row],[Expenses]])","v":{"v":0,"d":"0.00"}},{"$f":"SUMIFS(ExpNov[Amount],ExpNov[Category],ExpenseSummary[[#This Row],[Expenses]])","v":{"v":0,"d":"0.00"}},{"$f":"SUMIFS(ExpDec[Amount],ExpDec[Category],ExpenseSummary[[#This Row],[Expenses]])","v":{"v":187,"d":"187.00"}},{"$f":"SUM(ExpenseSummary[[#This Row],[Jan]:[Dec]])","v":{"v":1519,"d":"1,519.00"}}]
["Expense 5",{"$f":"SUMIFS(ExpJan[Amount],ExpJan[Category],ExpenseSummary[[#This Row],[Expenses]])","v":{"v":54,"d":"54.00"}},{"$f":"SUMIFS(ExpFeb[Amount],ExpFeb[Category],ExpenseSummary[[#This Row],[Expenses]])","v":{"v":54,"d":"54.00"}},{"$f":"SUMIFS(ExpMar[Amount],ExpMar[Category],ExpenseSummary[[#This Row],[Expenses]])","v":{"v":109,"d":"109.00"}},{"$f":"SUMIFS(ExpApr[Amount],ExpApr[Category],ExpenseSummary[[#This Row],[Expenses]])","v":{"v":98,"d":"98.00"}},{"$f":"SUMIFS(ExpMay[Amount],ExpMay[Category],ExpenseSummary[[#This Row],[Expenses]])","v":{"v":33,"d":"33.00"}},{"$f":"SUMIFS(ExpJun[Amount],ExpJun[Category],ExpenseSummary[[#This Row],[Expenses]])","v":{"v":441,"d":"441.00"}},{"$f":"SUMIFS(ExpJul[Amount],ExpJul[Category],ExpenseSummary[[#This Row],[Expenses]])","v":{"v":0,"d":"0.00"}},{"$f":"SUMIFS(ExpAug[Amount],ExpAug[Category],ExpenseSummary[[#This Row],[Expenses]])","v":{"v":0,"d":"0.00"}},{"$f":"SUMIFS(ExpSep[Amount],ExpSep[Category],ExpenseSummary[[#This Row],[Expenses]])","v":{"v":0,"d":"0.00"}},{"$f":"SUMIFS(ExpOct[Amount],ExpOct[Category],ExpenseSummary[[#This Row],[Expenses]])","v":{"v":0,"d":"0.00"}},{"$f":"SUMIFS(ExpNov[Amount],ExpNov[Category],ExpenseSummary[[#This Row],[Expenses]])","v":{"v":0,"d":"0.00"}},{"$f":"SUMIFS(ExpDec[Amount],ExpDec[Category],ExpenseSummary[[#This Row],[Expenses]])","v":{"v":99,"d":"99.00"}},{"$f":"SUM(ExpenseSummary[[#This Row],[Jan]:[Dec]])","v":{"v":888,"d":"888.00"}}]
["Total",{"$f":"SUBTOTAL(109,ExpenseSummary[Jan])","v":{"v":861,"d":"861.00"}},{"$f":"SUBTOTAL(109,ExpenseSummary[Feb])","v":{"v":861,"d":"861.00"}},{"$f":"SUBTOTAL(109,ExpenseSummary[Mar])","v":{"v":574,"d":"574.00"}},{"$f":"SUBTOTAL(109,ExpenseSummary[Apr])","v":{"v":817,"d":"817.00"}},{"$f":"SUBTOTAL(109,ExpenseSummary[May])","v":{"v":977,"d":"977.00"}},{"$f":"SUBTOTAL(109,ExpenseSummary[Jun])","v":{"v":1049,"d":"1,049.00"}},{"$f":"SUBTOTAL(109,ExpenseSummary[Jul])","v":{"v":0,"d":"0.00"}},{"$f":"SUBTOTAL(109,ExpenseSummary[Aug])","v":{"v":0,"d":"0.00"}},{"$f":"SUBTOTAL(109,ExpenseSummary[Sep])","v":{"v":0,"d":"0.00"}},{"$f":"SUBTOTAL(109,ExpenseSummary[Oct])","v":{"v":0,"d":"0.00"}},{"$f":"SUBTOTAL(109,ExpenseSummary[Nov])","v":{"v":0,"d":"0.00"}},{"$f":"SUBTOTAL(109,ExpenseSummary[Dec])","v":{"v":1049,"d":"1,049.00"}},{"$f":"SUBTOTAL(109,ExpenseSummary[Total])","v":{"v":6188,"d":"6,188.00"}}]

{"sheet":"jan","index":2,"n_rows":9,"n_cols":5,"rows_kept":9,"merged":[[0,0,0,2]]}
["JANUARY EXPENSES",null,null,"Summary","Tips"]
["Date","PO#","Amount","Category","Description"]
[{"$f":"DATE(YEAR(TODAY()),1,4)","v":"2022-01-04"},"A-12345",{"v":33,"d":"33.00"},"Expense 1","Supplies"]
[{"$f":"DATE(YEAR(TODAY()),1,5)","v":"2022-01-05"},"A-12346",{"v":238,"d":"238.00"},"Expense 2"]
[null,null,{"v":342,"d":"342.00"},"Expense 4"]
[null,null,{"v":110,"d":"110.00"},"Expense 3"]
[null,null,{"v":84,"d":"84.00"},"Expense 4"]
[null,null,{"v":54,"d":"54.00"},"Expense 5"]
["Total",null,{"$f":"SUBTOTAL(109,ExpJan[Amount])","v":{"v":861,"d":"861.00"}}]

{"sheet":"feb","index":3,"n_rows":9,"n_cols":5,"rows_kept":9,"merged":[[0,0,0,2]]}
["FEBRUARY EXPENSES",null,null,"Summary","Tips"]
["Date","PO#","Amount","Category","Description"]
[{"$f":"DATE(YEAR(TODAY()),2,3)","v":"2022-02-03"},"A-12345",{"v":33,"d":"33.00"},"Expense 1","Supplies"]
[{"$f":"DATE(YEAR(TODAY()),2,4)","v":"2022-02-04"},"A-12346",{"v":238,"d":"238.00"},"Expense 2"]
[null,null,{"v":342,"d":"342.00"},"Expense 1"]
[null,null,{"v":110,"d":"110.00"},"Expense 3"]
[null,null,{"v":84,"d":"84.00"},"Expense 4"]
[null,null,{"v":54,"d":"54.00"},"Expense 5"]
["Total",null,{"$f":"SUBTOTAL(109,ExpFeb[Amount])","v":{"v":861,"d":"861.00"}}]

{"sheet":"mar","index":4,"n_rows":9,"n_cols":5,"rows_kept":9,"merged":[[0,0,0,2]]}
["MARCH EXPENSES",null,null,"Summary","Tips"]
["Date","PO#","Amount","Category","Description"]
[{"$f":"DATE(YEAR(TODAY()),3,5)","v":"2022-03-05"},"A-12345",{"v":33,"d":"33.00"},"Expense 1","Supplies"]
[{"$f":"DATE(YEAR(TODAY()),3,6)","v":"2022-03-06"},"A-12346",{"v":238,"d":"238.00"},"Expense 2"]
[null,null,{"v":55,"d":"55.00"},"Expense 5"]
[null,null,{"v":110,"d":"110.00"},"Expense 3"]
[null,null,{"v":84,"d":"84.00"},"Expense 4"]
[null,null,{"v":54,"d":"54.00"},"Expense 5"]
["Total",null,{"$f":"SUBTOTAL(109,ExpMar[Amount])","v":{"v":574,"d":"574.00"}}]

{"sheet":"apr","index":5,"n_rows":9,"n_cols":5,"rows_kept":9,"merged":[[0,0,0,2]]}
["APRIL EXPENSES",null,null,"Summary","Tips"]
["Date","PO#","Amount","Category","Description"]
[{"$f":"DATE(YEAR(TODAY()),4,4)","v":"2022-04-04"},"A-12345",{"v":45,"d":"45.00"},"Expense 1","Supplies"]
[{"$f":"DATE(YEAR(TODAY()),4,8)","v":"2022-04-08"},"A-12346",{"v":123,"d":"123.00"},"Expense 2"]
[null,null,{"v":342,"d":"342.00"},"Expense 4"]
[null,null,{"v":125,"d":"125.00"},"Expense 3"]
[null,null,{"v":84,"d":"84.00"},"Expense 4"]
[null,null,{"v":98,"d":"98.00"},"Expense 5"]
["Total",null,{"$f":"SUBTOTAL(109,ExpApr[Amount])","v":{"v":817,"d":"817.00"}}]

{"sheet":"may","index":6,"n_rows":9,"n_cols":5,"rows_kept":9,"merged":[[0,0,0,2]]}
["MAY EXPENSES",null,null,"Summary","Tips"]
["Date","PO#","Amount","Category","Description"]
[{"$f":"DATE(YEAR(TODAY()),5,3)","v":"2022-05-03"},"A-12345",{"v":33,"d":"33.00"},"Expense 1","Supplies"]
[{"$f":"DATE(YEAR(TODAY()),5,8)","v":"2022-05-08"},"A-12346",{"v":111,"d":"111.00"},"Expense 2"]
[null,null,{"v":342,"d":"342.00"},"Expense 1"]
[null,null,{"v":333,"d":"333.00"},"Expense 3"]
[null,null,{"v":125,"d":"125.00"},"Expense 4"]
[null,null,{"v":33,"d":"33.00"},"Expense 5"]
["Total",null,{"$f":"SUBTOTAL(109,ExpMay[Amount])","v":{"v":977,"d":"977.00"}}]

{"sheet":"jun","index":7,"n_rows":9,"n_cols":5,"rows_kept":9,"merged":[[0,0,0,2]]}
["JUNE EXPENSES",null,null,"Summary","Tips"]
["Date","PO#","Amount","Category","Description"]
[{"$f":"DATE(YEAR(TODAY()),6,7)","v":"2022-06-07"},"A-12345",{"v":201,"d":"201.00"},"Expense 1","Supplies"]
[{"$f":"DATE(YEAR(TODAY()),6,8)","v":"2022-06-08"},"A-12346",{"v":98,"d":"98.00"},"Expense 2"]
[null,null,{"v":342,"d":"342.00"},"Expense 5"]
[null,null,{"v":122,"d":"122.00"},"Expense 3"]
[null,null,{"v":187,"d":"187.00"},"Expense 4"]
[null,null,{"v":99,"d":"99.00"},"Expense 5"]
["Total",null,{"$f":"SUBTOTAL(109,ExpJun[Amount])","v":{"v":1049,"d":"1,049.00"}}]

{"sheet":"jul","index":8,"n_rows":9,"n_cols":5,"rows_kept":9,"merged":[[0,0,0,2]]}
["JULY EXPENSES",null,null,"Summary","Tips"]
["Date","PO#","Amount","Category","Description"]
[{"$f":"DATE(YEAR(TODAY()),7,9)","v":"2022-07-09"},"A-12345",null,"Expense 1","Supplies"]
[{"$f":"DATE(YEAR(TODAY()),7,14)","v":"2022-07-14"},"A-12346",null,"Expense 2"]
[{"$nulls":3},"Expense 2"]
[{"$nulls":3},"Expense 3"]
[{"$nulls":3},"Expense 4"]
[{"$nulls":3},"Expense 5"]
["Total",null,{"$f":"SUBTOTAL(109,ExpJul[Amount])","v":{"v":0,"d":"0.00"}}]

{"sheet":"aug","index":9,"n_rows":9,"n_cols":5,"rows_kept":9,"merged":[[0,0,0,2]]}
["AUGUST EXPENSES",null,null,"Summary","Tips"]
["Date","PO#","Amount","Category","Description"]
[{"$f":"DATE(YEAR(TODAY()),8,8)","v":"2022-08-08"},"A-12345",null,"Expense 1","Supplies"]
[{"$f":"DATE(YEAR(TODAY()),8,9)","v":"2022-08-09"},"A-12346",null,"Expense 2"]
[{"$nulls":3},"Expense 2"]
[{"$nulls":3},"Expense 3"]
[{"$nulls":3},"Expense 4"]
[{"$nulls":3},"Expense 5"]
["Total",null,{"$f":"SUBTOTAL(109,ExpAug[Amount])","v":{"v":0,"d":"0.00"}}]

{"sheet":"sep","index":10,"n_rows":9,"n_cols":5,"rows_kept":9,"merged":[[0,0,0,2]]}
["SEPTEMBER EXPENSES",null,null,"Summary","Tips"]
["Date","PO#","Amount","Category","Description"]
[{"$f":"DATE(YEAR(TODAY()),9,9)","v":"2022-09-09"},"A-12345",null,"Expense 1","Supplies"]
[{"$f":"DATE(YEAR(TODAY()),9,15)","v":"2022-09-15"},"A-12346",null,"Expense 2"]
[{"$nulls":3},"Expense 2"]
[{"$nulls":3},"Expense 3"]
[{"$nulls":3},"Expense 4"]
[{"$nulls":3},"Expense 5"]
["Total",null,{"$f":"SUBTOTAL(109,ExpSep[Amount])","v":{"v":0,"d":"0.00"}}]

{"sheet":"oct","index":11,"n_rows":9,"n_cols":5,"rows_kept":9,"merged":[[0,0,0,2]]}
["OCTOBER EXPENSES",null,null,"Summary","Tips"]
["Date","PO#","Amount","Category","Description"]
[{"$f":"DATE(YEAR(TODAY()),10,10)","v":"2022-10-10"},"A-12345",null,"Expense 1","Supplies"]
[{"$f":"DATE(YEAR(TODAY()),10,21)","v":"2022-10-21"},"A-12346",null,"Expense 2"]
[{"$nulls":3},"Expense 2"]
[{"$nulls":3},"Expense 3"]
[{"$nulls":3},"Expense 4"]
[{"$nulls":3},"Expense 5"]
["Total",null,{"$f":"SUBTOTAL(109,ExpOct[Amount])","v":{"v":0,"d":"0.00"}}]

{"sheet":"nov","index":12,"n_rows":9,"n_cols":5,"rows_kept":9,"merged":[[0,0,0,2]]}
["NOVEMBER EXPENSES",null,null,"Summary","Tips"]
["Date","PO#","Amount","Category","Description"]
[{"$f":"DATE(YEAR(TODAY()),11,14)","v":"2022-11-14"},"A-12345",null,"Expense 1","Supplies"]
[{"$f":"DATE(YEAR(TODAY()),11,21)","v":"2022-11-21"},"A-12346",null,"Expense 2"]
[{"$nulls":3},"Expense 2"]
[{"$nulls":3},"Expense 3"]
[{"$nulls":3},"Expense 4"]
[{"$nulls":3},"Expense 5"]
["Total",null,{"$f":"SUBTOTAL(109,ExpNov[Amount])","v":{"v":0,"d":"0.00"}}]

{"sheet":"dec","index":13,"n_rows":9,"n_cols":5,"rows_kept":9,"merged":[[0,0,0,2]]}
["DECEMBER EXPENSES",null,null,"Summary","Tips"]
["Date","PO#","Amount","Category","Description"]
[{"$f":"DATE(YEAR(TODAY()),12,2)","v":"2022-12-02"},"A-12345",{"v":201,"d":"201.00"},"Expense 1","Supplies"]
[{"$f":"DATE(YEAR(TODAY()),12,24)","v":"2022-12-24"},"A-12346",{"v":98,"d":"98.00"},"Expense 2"]
[null,null,{"v":342,"d":"342.00"},"Expense 2"]
[null,null,{"v":122,"d":"122.00"},"Expense 3"]
[null,null,{"v":187,"d":"187.00"},"Expense 4"]
[null,null,{"v":99,"d":"99.00"},"Expense 5"]
["Total",null,{"$f":"SUBTOTAL(109,ExpDec[Amount])","v":{"v":1049,"d":"1,049.00"}}]